lending/lending_fUSD_20240509
["ID","MTS","AMOUNT","RATE_DAILY","PERIOD"]
[326729719,1715285457354,-768.61,0.00041095,30]
[326729720,1715285457365,-500.0,0.00041095,30]
[326729721,1715285457375,-500.0,0.00041095,30]
[326729722,1715285457384,-500.0,0.00041095,30]
[326729723,1715285457393,-1842.16,0.00041095,30]
[326729724,1715285457401,-434.73633328,0.00041095,30]
[326729725,1715285457411,-2688.7,0.00041095,30]
[326729726,1715285457421,-440.36945333,0.00041095,30]
[326729727,1715285457430,-5708.45,0.00041095,30]
[326729728,1715285457439,-913.79,0.00041095,30]
[326729729,1715285457449,-1397.14,0.00041095,30]
[326729730,1715285457459,-4237.1,0.00041095,30]
[326729731,1715285457468,-500.0,0.00041095,30]
[326729732,1715285457477,-500.0,0.00041095,30]
[326729733,1715285457486,-694.12,0.00041095,30]
[326729734,1715285457495,-682.77,0.00041095,30]
[326729735,1715285457504,-648.96,0.00041095,30]
[326729736,1715285457513,-3544.32,0.00041095,30]
[326729737,1715285457522,-500.0,0.00041095,30]
[326729738,1715285457531,-1244.06,0.00041095,30]
[326729739,1715285457540,-500.0,0.00041095,30]
[326729740,1715285457550,-3747.47,0.00041095,30]
[326729741,1715285457559,-500.0,0.00041095,30]
[326729742,1715285457568,-592.77,0.00041095,30]
[326729743,1715285457577,-500.0,0.00041095,30]
[326729744,1715285457586,-500.0,0.00041095,30]
[326729745,1715285457595,-500.0,0.00041095,30]
[326729746,1715285457605,-500.0,0.00041095,30]
[326729747,1715285457614,-500.0,0.00041095,30]
[326729748,1715285457625,-682.96,0.00041095,30]
[326729749,1715285457634,-883.96,0.00041095,30]
[326729750,1715285457643,-6835.39,0.00041095,30]
[326729751,1715285457653,-500.0,0.00041095,30]
[326729752,1715285457662,-3867.14,0.00041095,30]
[326729753,1715285457671,-500.0,0.00041095,30]
[326729754,1715285457680,-500.0,0.00041095,30]
[326729755,1715285457690,-500.0,0.00041095,30]
[326729756,1715285457699,-2218.42,0.00041095,30]
[326729757,1715285457708,-2298.5,0.00041095,30]
[326729758,1715285457718,-1169.17,0.00041095,30]
[326729759,1715285457727,-500.0,0.00041095,30]
[326729760,1715285457736,-973.97,0.00041095,30]
[326729761,1715285457746,-500.0,0.00041095,30]
[326729762,1715285457755,-507.08155132,0.00041095,30]
[326729763,1715285457765,-500.0,0.00041095,30]
[326729764,1715285457774,-1879.2,0.00041095,30]
[326729765,1715285457784,-8049.58,0.00041095,30]
[326729766,1715285457793,-500.0,0.00041095,30]
[326729767,1715285457804,-896.7,0.00041095,30]
[326729768,1715285457813,-515.42,0.00041095,30]
[326729769,1715285457823,-500.0,0.00041095,30]
[326729770,1715285457832,-5699.92,0.00041095,30]
[326729771,1715285457842,-500.0,0.00041095,30]
[326729772,1715285457851,-800.18,0.00041095,30]
[326729773,1715285457860,-500.0,0.00041095,30]
[326729774,1715285457871,-500.0,0.00041095,30]
[326729775,1715285457881,-500.0,0.00041095,30]
[326729776,1715285457890,-500.0,0.00041095,30]
[326729777,1715285457899,-500.0,0.00041095,30]
[326729778,1715285457908,-8556.8,0.00041095,30]
[326729779,1715285457918,-500.0,0.00041095,30]
[326729780,1715285457927,-500.0,0.00041095,31]
[326729781,1715285457936,-500.0,0.00041095,32]
[326729782,1715285457946,-500.0,0.00041095,30]
[326729783,1715285457957,-500.0,0.00041095,30]
[326729784,1715285457968,-500.0,0.00041095,33]
[326729785,1715285457978,-500.0,0.00041095,34]
[326729786,1715285457989,-500.0,0.00041095,35]
[326729787,1715285457998,-500.0,0.00041095,30]
[326729788,1715285458009,-1270.31,0.00041095,30]
[326729789,1715285458021,-3341.7,0.00041095,30]
[326729790,1715285458031,-500.0,0.00041095,30]
[326729791,1715285458041,-500.0,0.00041095,30]
[326729792,1715285458049,-1682.94,0.00041095,30]
[326729793,1715285458059,-500.0,0.00041095,30]
[326729794,1715285458068,-3620.05,0.00041095,30]
[326729795,1715285458077,-500.0,0.00041095,30]
[326729796,1715285458085,-500.0,0.00041095,30]
[326729797,1715285458095,-500.0,0.00041095,30]
[326729798,1715285458103,-675.51,0.00041095,30]
[326729799,1715285458113,-502.92059485,0.00041095,30]
[326729800,1715285458121,-500.0,0.00041095,30]
[326729801,1715285458131,-500.0,0.00041095,30]
[326729802,1715285458140,-500.0,0.00041095,30]
[326729803,1715285458150,-500.0,0.00041095,30]
[326729804,1715285458159,-3808.5,0.00041095,30]
[326729805,1715285458168,-500.0,0.00041095,30]
[326729806,1715285458177,-500.0,0.00041095,30]
[326729807,1715285458187,-277.89419337,0.00041095,30]
[326729808,1715285458196,-732.95,0.00041095,30]
[326729809,1715285458206,-500.0,0.00041095,30]
[326729810,1715285458215,-500.0,0.00041095,30]
[326729811,1715285458224,-500.0,0.00041095,30]
[326729812,1715285458233,-500.0,0.00041095,30]
[326729813,1715285458242,-2346.0,0.00041095,30]
[326729814,1715285458251,-500.0,0.00041095,30]
[326729815,1715285458261,-500.0,0.00041095,30]
[326729816,1715285458270,-500.0,0.00041095,30]
[326729817,1715285458280,-4470.94,0.00041095,30]
[326729818,1715285458292,-18265.22,0.00041095,30]
[326729819,1715285458301,-4500.15,0.00041095,30]
[326729820,1715285458310,-500.0,0.00041095,30]
[326729821,1715285458319,-3669.64,0.00041095,30]
[326729822,1715285458330,-500.0,0.00041095,30]
[326729823,1715285458339,-500.0,0.00041095,30]
[326729824,1715285458348,-500.0,0.00041095,30]
[326729825,1715285458357,-1061.22,0.00041095,30]
[326729826,1715285458368,-5885.91,0.00041095,30]
[326729827,1715285458378,-500.0,0.00041095,30]
[326729828,1715285458387,-803.71,0.00041095,30]
[326729829,1715285458396,-5000.0,0.00041095,30]
[326729830,1715285458405,-2407.8,0.00041095,30]
[326729831,1715285458414,-500.0,0.00041095,30]
[326729832,1715285458426,-500.0,0.00041095,30]
[326729833,1715285458435,-510.0,0.00041095,120]
[326729834,1715285458444,-851.26,0.00041095,30]
[326729835,1715285458453,-500.0,0.00041095,30]
[326729836,1715285458463,-500.0,0.00041095,30]
[326729837,1715285458472,-500.0,0.00041095,30]
[326729838,1715285458481,-906.94,0.00041095,30]
[326729839,1715285458490,-10346.49,0.00041095,30]
[326729840,1715285458499,-729.02,0.00041095,30]
[326729841,1715285458509,-523.96,0.00041095,30]
[326729842,1715285458518,-943.21,0.00041095,30]
[326729843,1715285458527,-2399.23,0.00041095,30]
[326729844,1715285458537,-1082.55,0.00041095,30]
[326729845,1715285458546,-6940.41,0.00041095,30]
[326729846,1715285458555,-1196.24,0.00041095,30]
[326729847,1715285458565,-2104.51,0.00041095,90]
[326729848,1715285458574,-13042.21,0.00041095,30]
[326729849,1715285458584,-2045.32,0.00041095,30]
[326729850,1715285458593,-500.0,0.00041095,30]
[326729851,1715285458602,-2561.97,0.00041095,30]
[326729852,1715285458611,-500.0,0.00041095,30]
[326729853,1715285458621,-500.0,0.00041095,30]
[326729854,1715285458631,-500.0,0.00041095,30]
[326729855,1715285458640,-500.0,0.00041095,30]
[326729856,1715285458649,-1065.79,0.00041095,30]
[326729857,1715285458659,-1077.08,0.00041095,30]
[326729858,1715285458669,-215.94302429,0.00041095,30]
[326729859,1715285458679,-500.0,0.00041095,30]
[326729860,1715285458689,-500.0,0.00041095,30]
[326729861,1715285458698,-2024.69,0.00041095,30]
[326729862,1715285458708,-1079.52,0.00041095,30]
[326729863,1715285458718,-1176.37,0.00041095,30]
[326729864,1715285458728,-978.27,0.00041095,30]
[326729865,1715285458737,-500.0,0.00041095,2]
[326729866,1715285458748,-2203.81,0.00041095,30]
[326729867,1715285458757,-500.0,0.00041095,30]
[326729868,1715285458768,-3363.71,0.00041095,30]
[326729869,1715285458778,-518.12754601,0.00041095,30]
[326729870,1715285458787,-416.0,0.00041095,13]
[326729871,1715285458797,-157.0,0.00041096,2]
[326729872,1715285458806,-200.0,0.00041096,30]
[326729873,1715285458816,-1012.85573463,0.0004116,5]
[326729874,1715285458826,-1126.66915163,0.0004116,5]
[326729875,1715285458835,-174.42603969,0.00041269,2]
[326729876,1715285458845,-275.20318744,0.00041269,2]
[326729877,1715285458854,-1184.79259779,0.00041269,2]
[326729878,1715285458864,-150.0,0.00041342,30]
[326729879,1715285458875,-150.0,0.00041342,30]
[326729880,1715285458884,-150.0,0.00041342,30]
[326729881,1715285458893,-150.0,0.00041342,30]
[326729882,1715285458903,-181.49625513,0.00041359,2]
[326729883,1715285458913,-204.17519546,0.00041367,4]
[326729884,1715285458922,-3077.0200038,0.00041367,30]
[326729885,1715285458932,-2181.3016103,0.00041367,4]
[326729886,1715285458941,-1000.0,0.00041368,31]
[326729887,1715285458951,-500.0,0.00041368,36]
[326729888,1715285458960,-500.0,0.00041368,37]
[326729889,1715285458970,-500.0,0.00041368,38]
[326729890,1715285458980,-500.0,0.00041368,39]
[326729891,1715285458989,-500.0,0.00041368,36]
[326729892,1715285458999,-496.63191649,0.00041368,37]
[326729893,1715285459008,-500.0,0.00041368,36]
[326729894,1715285459018,-171.40622059,0.00041368,37]
[326729895,1715285459028,-184.92126703,0.00041368,7]
[326729896,1715285459038,-184.92126703,0.00041368,7]
[326729897,1715285459048,-420.23397186,0.00041369,31]
[326729898,1715285459057,-500.0,0.00041369,31]
[326729899,1715285459067,-512.7038918,0.00041369,31]
[326729900,1715285459076,-545.47092938,0.00041369,31]
[326729901,1715285459085,-153.88080458,0.00041369,31]
[326729902,1715285459095,-500.0,0.00041369,31]
[326729903,1715285459104,-500.0,0.00041369,31]
[326729904,1715285459114,-500.0,0.00041369,31]
[326729905,1715285459125,-500.0,0.00041369,31]
[326729906,1715285459134,-514.99104277,0.00041369,31]
[326729907,1715285459144,-500.0,0.00041369,31]
[326729908,1715285459154,-500.0,0.00041369,31]
[326729909,1715285459164,-538.25,0.00041369,31]
[326729910,1715285459173,-500.0,0.00041369,31]
[326729911,1715285459183,-500.0,0.00041369,31]
[326729912,1715285459193,-500.0,0.00041369,31]
[326729913,1715285459203,-500.0,0.00041369,31]
[326729914,1715285459213,-500.0,0.00041369,31]
[326729915,1715285459223,-500.0,0.00041369,31]
[326729916,1715285459232,-200.0,0.00041369,31]
[326729917,1715285459242,-587.4,0.00041369,31]
[326729918,1715285459251,-500.0,0.00041369,31]
[326729919,1715285459261,-500.0,0.00041369,31]
[326729920,1715285459271,-500.0,0.00041369,31]
[326729921,1715285459281,-500.0,0.00041369,31]
[326729922,1715285459294,-681.9,0.00041369,31]
[326729923,1715285459304,-500.0,0.00041369,31]
[326729924,1715285459313,-608.19801026,0.00041369,31]
[326729925,1715285459324,-500.0,0.00041369,31]
[326729926,1715285459333,-500.0,0.00041369,31]
[326729927,1715285459343,-500.0,0.00041369,31]
[326729928,1715285459352,-500.0,0.00041369,31]
[326729929,1715285459363,-500.0,0.00041369,31]
[326729930,1715285459372,-500.0,0.00041369,31]
[326729931,1715285459382,-500.0,0.00041369,31]
[326729932,1715285459391,-515.23649831,0.00041369,31]
[326729933,1715285459401,-615.44578115,0.00041369,31]
[326729934,1715285459410,-832.44,0.00041369,31]
[326729935,1715285459419,-500.0,0.00041369,31]
[326729936,1715285459429,-500.0,0.00041369,31]
[326729937,1715285459438,-500.0,0.00041369,31]
[326729938,1715285459447,-644.87,0.00041369,31]
[326729939,1715285459456,-510.58274273,0.00041369,31]
[326729940,1715285459466,-642.29,0.00041369,31]
[326729941,1715285459475,-500.0,0.00041369,31]
[326729942,1715285459484,-220.48845191,0.00041369,31]
[326729943,1715285459494,-500.0,0.00041369,31]
[326729944,1715285459504,-500.0,0.00041369,31]
[326729945,1715285459515,-924.01,0.00041369,31]
[326729946,1715285459525,-249.992111,0.00041369,31]
[326729947,1715285459534,-500.0,0.00041369,31]
[326729948,1715285459544,-500.0,0.00041369,31]
[326729949,1715285459553,-500.0,0.00041369,31]
[326729950,1715285459562,-500.0,0.00041369,31]
[326729951,1715285459571,-500.0,0.00041369,31]
[326729952,1715285459581,-537.74,0.00041369,31]
[326729953,1715285459590,-513.76228189,0.00041369,31]
[326729954,1715285459599,-500.0,0.00041369,31]
[326729955,1715285459608,-500.0,0.00041369,31]
[326729956,1715285459617,-500.0,0.00041369,31]
[326729957,1715285459628,-504.9140437,0.00041369,31]
[326729958,1715285459637,-500.0,0.00041369,31]
[326729959,1715285459646,-500.0,0.00041369,31]
[326729960,1715285459656,-500.0,0.00041369,31]
[326729961,1715285459665,-1200.0,0.00041369,2]
[326729962,1715285459674,-500.0,0.00041369,31]
[326729963,1715285459683,-259.02461999,0.00041369,31]
[326729964,1715285459693,-648.3,0.00041369,31]
[326729965,1715285459702,-500.0,0.00041369,31]
[326729966,1715285459711,-500.0,0.00041369,31]
[326729967,1715285459721,-500.0,0.00041369,31]
[326729968,1715285459731,-500.0,0.00041369,31]
[326729969,1715285459740,-500.0,0.00041369,31]
[326729970,1715285459749,-758.68,0.00041369,31]
[326729971,1715285459759,-229.18325026,0.00041369,31]
[326729972,1715285459768,-500.0,0.00041369,31]
[326729973,1715285459942,-500.0,0.00041369,31]
[326729974,1715285459956,-500.0,0.00041369,31]
[326729975,1715285459966,-500.0,0.00041369,31]
[326729976,1715285459975,-516.69246121,0.00041369,31]
[326729977,1715285459986,-500.0,0.00041369,31]
[326729978,1715285459995,-500.0,0.00041369,31]
[326729979,1715285460005,-500.0,0.00041369,31]
[326729980,1715285460014,-554.57592162,0.00041369,31]
[326729981,1715285460024,-620.1,0.00041369,31]
[326729982,1715285460033,-500.0,0.00041369,31]
[326729983,1715285460042,-1038.29,0.00041369,31]
[326729984,1715285460052,-500.0,0.00041369,31]
[326729985,1715285460064,-500.0,0.00041369,31]
[326729986,1715285460073,-500.0,0.00041369,31]
[326729987,1715285460083,-500.0,0.00041369,31]
[326729988,1715285460093,-500.0,0.00041369,31]
[326729989,1715285460102,-536.62092418,0.00041369,31]
[326729990,1715285460111,-500.0,0.00041369,31]
[326729991,1715285460122,-500.0,0.00041369,31]
[326729992,1715285460131,-532.46552254,0.00041369,31]
[326729993,1715285460140,-500.0,0.00041369,31]
[326729994,1715285460150,-584.62,0.00041369,31]
[326729995,1715285460159,-500.0,0.00041369,31]
[326729996,1715285460169,-515.28386827,0.00041369,31]
[326729997,1715285460179,-500.0,0.00041369,31]
[326729998,1715285460188,-500.0,0.00041369,31]
[326729999,1715285460197,-500.0,0.00041369,31]
[326730000,1715285460207,-500.0,0.00041369,31]
[326730001,1715285460217,-500.0,0.00041369,31]
[326730002,1715285460227,-500.0,0.00041369,31]
[326730003,1715285460236,-500.0,0.00041369,31]
[326730004,1715285460246,-500.0,0.00041369,31]
[326730005,1715285460255,-500.0,0.00041369,31]
[326730006,1715285460266,-500.0,0.00041369,31]
[326730007,1715285460276,-515.89315163,0.00041369,31]
[326730008,1715285460287,-500.0,0.00041369,31]
[326730009,1715285460298,-500.0,0.00041369,31]
[326730010,1715285460307,-500.0,0.00041369,31]
[326730011,1715285460316,-500.0,0.00041369,31]
[326730012,1715285460326,-500.0,0.00041369,31]
[326730013,1715285460336,-500.0,0.00041369,31]
[326730014,1715285460345,-500.0,0.00041369,31]
[326730015,1715285460354,-265.56699905,0.00041369,31]
[326730016,1715285460363,-500.0,0.00041369,31]
[326730017,1715285460378,-500.0,0.00041369,31]
[326730018,1715285460387,-500.0,0.00041369,31]
[326730019,1715285460396,-500.0,0.00041369,31]
[326730020,1715285460406,-588.83,0.00041369,31]
[326730021,1715285460415,-500.0,0.00041369,31]
[326730022,1715285460425,-885.66,0.00041369,31]
[326730023,1715285460434,-500.0,0.00041369,31]
[326730024,1715285460444,-509.25441099,0.00041369,31]
[326730025,1715285460454,-500.0,0.00041369,31]
[326730026,1715285460464,-500.0,0.00041369,31]
[326730027,1715285460473,-500.0,0.00041369,31]
[326730028,1715285460483,-500.0,0.00041369,31]
[326730029,1715285460493,-570.67,0.00041369,31]
[326730030,1715285460502,-501.43,0.00041369,31]
[326730031,1715285460512,-525.99675264,0.00041369,31]
[326730032,1715285460522,-568.35712768,0.00041369,31]
[326730033,1715285460531,-891.11,0.00041369,10]
[326730034,1715285460541,-500.0,0.00041369,31]
[326730035,1715285460550,-500.0,0.00041369,31]
[326730036,1715285460559,-500.0,0.00041369,31]
[326730037,1715285460568,-500.0,0.00041369,31]
[326730038,1715285460578,-500.0,0.00041369,31]
[326730039,1715285460587,-518.85643085,0.00041369,31]
[326730040,1715285460597,-500.0,0.00041369,31]
[326730041,1715285460606,-500.0,0.00041369,31]
[326730042,1715285460615,-500.0,0.00041369,31]
[326730043,1715285460626,-500.0,0.00041369,31]
[326730044,1715285460635,-683.3,0.00041369,31]
[326730045,1715285460644,-556.62987513,0.00041369,31]
[326730046,1715285460653,-500.0,0.00041369,31]
[326730047,1715285460662,-500.0,0.00041369,31]
[326730048,1715285460672,-1538.3,0.00041369,31]
[326730049,1715285460681,-500.0,0.00041369,31]
[326730050,1715285460690,-500.0,0.00041369,31]
[326730051,1715285460700,-693.86,0.00041369,31]
[326730052,1715285460709,-500.0,0.00041369,31]
[326730053,1715285460718,-500.0,0.00041369,31]
[326730054,1715285460727,-514.09462362,0.00041369,31]
[326730055,1715285460736,-509.28315056,0.00041369,31]
[326730056,1715285460745,-500.0,0.00041369,31]
[326730057,1715285460754,-500.0,0.00041369,31]
[326730058,1715285460764,-500.0,0.00041369,31]
[326730059,1715285460773,-1292.83,0.00041369,31]
[326730060,1715285460783,-500.0,0.00041369,31]
[326730061,1715285460792,-503.39583442,0.00041369,31]
[326730062,1715285460801,-683.29,0.00041369,31]
[326730063,1715285460811,-1266.56,0.00041369,31]
[326730064,1715285460820,-500.0,0.00041369,31]
[326730065,1715285460830,-500.0,0.00041369,31]
[326730066,1715285460840,-612.48,0.00041369,31]
[326730067,1715285460849,-977.55,0.00041369,31]
[326730068,1715285460858,-500.0,0.00041369,31]
[326730069,1715285460867,-500.0,0.00041369,31]
[326730070,1715285460878,-500.0,0.00041369,31]
[326730071,1715285460887,-500.0,0.00041369,31]
[326730072,1715285460896,-500.0,0.00041369,31]
[326730073,1715285460906,-500.0,0.00041369,31]
[326730074,1715285460916,-1920.91,0.00041369,31]
[326730075,1715285460925,-500.0,0.00041369,31]
[326730076,1715285460935,-1299.62,0.00041369,31]
[326730077,1715285460944,-500.0,0.00041369,31]
[326730078,1715285460954,-1094.54,0.00041369,31]
[326730079,1715285460963,-500.0,0.00041369,31]
[326730080,1715285460972,-1979.61,0.00041369,31]
[326730081,1715285460982,-845.67,0.00041369,31]
[326730082,1715285460991,-511.51,0.00041369,31]
[326730083,1715285461001,-500.0,0.00041369,31]
[326730084,1715285461010,-567.5293062,0.00041369,31]
[326730085,1715285461019,-608.26,0.00041369,31]
[326730086,1715285461028,-929.85,0.00041369,31]
[326730087,1715285461038,-648.69,0.00041369,31]
[326730088,1715285461047,-500.0,0.00041369,31]
[326730089,1715285461057,-500.0,0.00041369,31]
[326730090,1715285461066,-520.21487393,0.00041369,31]
[326730091,1715285461075,-1779.57,0.00041369,31]
[326730092,1715285461084,-500.0,0.00041369,31]
[326730093,1715285461094,-776.21,0.00041369,31]
[326730094,1715285461103,-583.96,0.00041369,31]
[326730095,1715285461112,-502.69,0.00041369,31]
[326730096,1715285461123,-197.03758661,0.00041369,31]
[326730097,1715285461132,-500.0,0.00041369,31]
[326730098,1715285461141,-500.0,0.00041369,31]
[326730099,1715285461150,-500.0,0.00041369,31]
[326730100,1715285461160,-500.0,0.00041369,31]
[326730101,1715285461169,-560.84030225,0.00041369,31]
[326730102,1715285461179,-500.0,0.00041369,31]
[326730103,1715285461188,-620.48,0.00041369,31]
[326730104,1715285461197,-500.0,0.00041369,31]
[326730105,1715285461206,-532.69,0.00041369,31]
[326730106,1715285461215,-500.0,0.00041369,31]
[326730107,1715285461224,-541.73,0.00041369,31]
[326730108,1715285461234,-500.0,0.00041369,31]
[326730109,1715285461243,-500.0,0.00041369,31]
[326730110,1715285461256,-2120.27,0.00041369,31]
[326730111,1715285461266,-500.0,0.00041369,31]
[326730112,1715285461275,-931.82,0.00041369,31]
[326730113,1715285461286,-500.0,0.00041369,31]
[326730114,1715285461297,-500.0,0.00041369,31]
[326730115,1715285461307,-500.0,0.00041369,2]
[326730116,1715285461316,-1093.43,0.00041369,31]
[326730117,1715285461327,-478.75154249,0.00041369,31]
[326730118,1715285461336,-500.0,0.00041369,31]
[326730119,1715285461346,-500.0,0.00041369,31]
[326730120,1715285461356,-770.45,0.00041369,31]
[326730121,1715285461367,-2176.78,0.00041369,31]
[326730122,1715285461378,-500.0,0.00041369,31]
[326730123,1715285461387,-719.16,0.00041369,31]
[326730124,1715285461396,-500.0,0.00041369,31]
[326730125,1715285461405,-500.0,0.00041369,31]
[326730126,1715285461414,-632.65,0.00041369,31]
[326730127,1715285461426,-639.05,0.00041369,31]
[326730128,1715285461435,-917.45,0.00041369,31]
[326730129,1715285461445,-500.0,0.00041369,31]
[326730130,1715285461454,-500.0,0.00041369,31]
[326730131,1715285461464,-500.0,0.00041369,31]
[326730132,1715285461474,-500.0,0.00041369,31]
[326730133,1715285461483,-656.2,0.00041369,31]
[326730134,1715285461492,-599.55,0.00041369,31]
[326730135,1715285461502,-500.0,0.00041369,31]
[326730136,1715285461512,-500.0,0.00041369,31]
[326730137,1715285461521,-500.0,0.00041369,31]
[326730138,1715285461531,-1468.77,0.00041369,31]
[326730139,1715285461541,-500.0,0.00041369,31]
[326730140,1715285461550,-500.0,0.00041369,31]
[326730141,1715285461559,-500.0,0.00041369,31]
[326730142,1715285461569,-500.0,0.00041369,31]
[326730143,1715285461578,-500.0,0.00041369,2]
[326730144,1715285461588,-500.0,0.00041369,31]
[326730145,1715285461598,-513.33685474,0.00041369,31]
[326730146,1715285461609,-500.0,0.00041369,31]
[326730147,1715285461619,-500.0,0.00041369,31]
[326730148,1715285461629,-1292.38,0.00041369,31]
[326730149,1715285461638,-500.0,0.00041369,31]
[326730150,1715285461647,-500.0,0.00041369,31]
[326730151,1715285461656,-500.0,0.00041369,2]
[326730152,1715285461666,-1267.75,0.00041369,31]
[326730153,1715285461676,-500.0,0.00041369,31]
[326730154,1715285461686,-511.62622087,0.00041369,31]
[326730155,1715285461697,-1515.05,0.00041369,31]
[326730156,1715285461707,-1582.03,0.00041369,2]
[326730157,1715285461718,-500.0,0.00041369,31]
[326730158,1715285461728,-500.0,0.00041369,31]
[326730159,1715285461739,-1337.24,0.00041369,31]
[326730160,1715285461748,-500.0,0.00041369,31]
[326730161,1715285461759,-500.0,0.00041369,31]
[326730162,1715285461770,-834.28,0.00041369,31]
[326730163,1715285461780,-674.35,0.00041369,31]
[326730164,1715285461789,-619.31,0.00041369,31]
[326730165,1715285461799,-500.0,0.00041369,31]
[326730166,1715285461809,-500.0,0.00041369,31]
[326730167,1715285461818,-500.0,0.00041369,31]
[326730168,1715285461828,-523.61,0.00041369,31]
[326730169,1715285461837,-500.0,0.00041369,31]
[326730170,1715285461847,-500.0,0.00041369,2]
[326730171,1715285461856,-500.0,0.00041369,31]
[326730172,1715285461866,-500.0,0.00041369,31]
[326730173,1715285461877,-509.55,0.00041369,31]
[326730174,1715285461886,-508.79,0.00041369,31]
[326730175,1715285461895,-500.0,0.00041369,31]
[326730176,1715285461905,-500.0,0.00041369,31]
[326730177,1715285461914,-500.0,0.00041369,31]
[326730178,1715285461924,-847.93,0.00041369,31]
[326730179,1715285461933,-500.0,0.00041369,31]
[326730180,1715285461943,-500.0,0.00041369,31]
[326730181,1715285461953,-500.0,0.00041369,31]
[326730182,1715285461962,-500.0,0.00041369,31]
[326730183,1715285461972,-864.41,0.00041369,31]
[326730184,1715285461981,-500.0,0.00041369,31]
[326730185,1715285461991,-500.0,0.00041369,31]
[326730186,1715285462000,-510.59707667,0.00041369,31]
[326730187,1715285462010,-1232.17,0.00041369,31]
[326730188,1715285462019,-539.78213271,0.00041369,31]
[326730189,1715285462029,-512.4920551,0.00041369,31]
[326730190,1715285462039,-1011.72,0.00041369,31]
[326730191,1715285462048,-662.0,0.00041369,31]
[326730192,1715285462058,-500.0,0.00041369,31]
[326730193,1715285462068,-514.75256186,0.00041369,31]
[326730194,1715285462078,-500.0,0.00041369,31]
[326730195,1715285462088,-500.0,0.00041369,31]
[326730196,1715285462098,-786.34,0.00041369,31]
[326730197,1715285462107,-500.0,0.00041369,31]
[326730198,1715285462117,-500.0,0.00041369,31]
[326730199,1715285462127,-500.0,0.00041369,31]
[326730200,1715285462137,-500.0,0.00041369,31]
[326730201,1715285462146,-503.26447539,0.00041369,31]
[326730202,1715285462155,-500.0,0.00041369,31]
[326730203,1715285462165,-500.0,0.00041369,31]
[326730204,1715285462175,-2071.34,0.00041369,31]
[326730205,1715285462184,-887.54,0.00041369,31]
[326730206,1715285462193,-500.0,0.00041369,31]
[326730207,1715285462203,-3602.31,0.00041369,31]
[326730208,1715285462212,-500.0,0.00041369,31]
[326730209,1715285462222,-753.84,0.00041369,31]
[326730210,1715285462232,-500.0,0.00041369,31]
[326730211,1715285462242,-2434.48,0.00041369,31]
[326730212,1715285462252,-500.0,0.00041369,31]
[326730213,1715285462262,-500.0,0.00041369,31]
[326730214,1715285462271,-500.0,0.00041369,31]
[326730215,1715285462281,-1710.92,0.00041369,31]
[326730216,1715285462295,-500.0,0.00041369,31]
[326730217,1715285462304,-500.0,0.00041369,31]
[326730218,1715285462314,-1200.44,0.00041369,31]